lending/lending_fUSD_20251114
["ID","MTS","AMOUNT","RATE_DAILY","PERIOD"]
[393951672,1763126545136,151.0,0.0001649,2]
[393951673,1763126545787,151.0,0.0001649,2]
[393951674,1763126546434,151.0,0.0001649,2]
[393951675,1763126547064,151.0,0.0001649,2]
[393951676,1763126548188,151.0,0.0001649,2]
[393951677,1763126548879,151.0,0.0001649,2]
[393951678,1763126556679,240.3,0.00024844,120]
[393951679,1763126593587,1258.003,0.00016483,2]
[393951680,1763126599855,1009.39323077,0.00016483,2]
[393951681,1763126599878,1490.60676923,0.00016483,2]
[393951682,1763126613159,2674.5605982,0.00016484,2]
[393951683,1763126629983,686.95155382,0.00016484,2]
[393951684,1763126665564,2794.3819,0.00016483,2]
[393951685,1763126678061,234.6662,0.00016483,2]
[393951686,1763126708298,5780.054702,7.945e-05,2]
[393951687,1763126719570,1190.907198,9e-05,2]
[393951688,1763126719596,5684.26211094,9e-05,2]
[393951689,1763126720160,3000.0,0.00041193,120]
[393951690,1763126720580,1000.0,0.00016483,2]
[393951692,1763126730198,212.49553948,0.00016484,2]
[393951694,1763126745694,150.0,0.00016336,2]
[393951696,1763126752498,1053.0202,0.00016483,2]
[393951697,1763126756566,10019.75394715,0.00041193,120]
[393951698,1763126758696,150.0,0.000162,2]
[393951701,1763126769993,173.60201681,0.00016484,2]
[393951702,1763126770645,158.9017945,0.00016484,2]
[393951703,1763126771143,386.7901,0.00016483,2]
[393951704,1763126773686,200.0,0.00016319,2]
[393951705,1763126776283,5000.0,0.000209,30]
[393951706,1763126776303,1357.17470493,0.000209,30]
[393951707,1763126821208,830.93823827,0.000153,2]
[393951708,1763126821233,686.70176173,0.000153,2]
[393951709,1763126824585,4121.94803644,0.00015,2]
[393951710,1763126852352,494.05,0.00015922,2]
[393951711,1763126870763,670.85097775,0.000155,2]
[393951712,1763126871048,666.0,0.000155,2]
[393951713,1763126871360,666.0,0.000155,2]
[393951714,1763126871669,666.0,0.000155,2]
[393951715,1763126872801,666.0,0.000155,2]
[393951718,1763126886186,200.0,0.0001634,2]
[393951719,1763126892037,1000.0,0.00016483,2]
[393951720,1763126897928,162.45922408,0.00015,2]
[393951721,1763126897953,10000.01,0.00015,2]
[393951722,1763126897982,11000.0,0.00015,2]
[393951723,1763126898015,66.34521784,0.00015,2]
[393951724,1763126905703,223.66,0.0001591,2]
[393951725,1763126915978,933.65478216,0.00015,3]
[393951726,1763126915999,1000.0,0.00015,3]
[393951727,1763126916019,1000.0,0.00015,3]
[393951728,1763126916040,1000.0,0.00015,3]
[393951729,1763126916060,1000.0,0.00015,3]
[393951730,1763126916080,1000.0,0.00015,3]
[393951731,1763126916100,1000.0,0.00015,3]
[393951732,1763126916121,1000.0,0.00015,3]
[393951733,1763126916143,1000.0,0.00015,3]
[393951734,1763126916164,1000.0,0.00015,3]
[393951735,1763126916186,30000.0,0.00015,3]
[393951736,1763126916267,7078.78767731,0.00041193,30]
[393951737,1763126916516,-361.01731737,0.00015,3]
[393951738,1763126917923,-240.11061844,0.00015,3]
[393951739,1763126919631,-374.38120448,0.00015,3]
[393951740,1763126923756,-326.55662721,0.00015,3]
[393951741,1763126923788,-10000.01,0.00015,3]
[393951742,1763126925003,-170.27333368,0.00015,3]
[393951743,1763126925423,-10000.01,0.00015,3]
[393951744,1763126925551,-10000.01,0.00015,3]
[393951745,1763126925701,-10000.01,0.00015,3]
[393951746,1763126925852,-10000.01,0.00015,3]
[393951747,1763126925960,-10000.01,0.00015,3]
[393951748,1763126926079,-10000.01,0.00015,3]
[393951749,1763126926327,-10000.01,0.00015,3]
[393951750,1763126928242,-198.6637194,0.00015,3]
[393951751,1763126931590,-10000.01,0.00015,3]
[393951752,1763126931727,-10000.01,0.00015,3]
[393951753,1763126931842,-10000.01,0.00015,3]
[393951754,1763126931961,-10000.01,0.00015,3]
[393951755,1763126932094,-10000.01,0.00015,3]
[393951756,1763126932209,-10000.01,0.00015,3]
[393951757,1763126932332,-10000.01,0.00015,3]
[393951758,1763126933407,-210.5688599,0.00015,3]
[393951759,1763126935429,-197.72800362,0.00015,3]
[393951760,1763126937483,-235.83628921,0.00015,3]
[393951761,1763126942029,-151.0,0.00015,3]
[393951762,1763126943960,-319.93358709,0.00015,3]
[393951763,1763126949104,418.74999995,0.000165,4]
[393951764,1763126949689,-266.99466597,0.00015,3]
[393951765,1763126950141,-10000.01,0.00015,3]
[393951766,1763126951496,-10000.01,0.00015,3]
[393951767,1763126951884,-10000.01,0.00015,3]
[393951768,1763126952114,-10000.01,0.00015,3]
[393951769,1763126952242,-304.75124917,0.00015,3]
[393951770,1763126952325,-10000.01,0.00015,3]
[393951772,1763126953820,-10000.01,0.00015,3]
[393951773,1763126954766,-10000.01,0.00015,3]
[393951774,1763126955227,-10000.01,0.00015,3]
[393951776,1763126955589,-10000.01,0.00015,3]
[393951778,1763126956953,-219.60181282,0.00015,3]
[393951779,1763126957543,-10000.01,0.00015,3]
[393951780,1763126959901,-378.73653148,0.00015,3]
[393951784,1763126966657,-177.11038753,0.00015,3]
[393951785,1763126968120,-10000.01,0.00015,3]
[393951786,1763126968469,-10000.01,0.00015,3]
[393951787,1763126968675,-10000.01,0.00015,3]
[393951788,1763126968890,-10000.01,0.00015,3]
[393951789,1763126969162,-10000.01,0.00015,3]
[393951790,1763126969390,-10000.01,0.00015,3]
[393951791,1763126969438,-163.53962671,0.00015,3]
[393951792,1763126969602,-10000.01,0.00015,3]
[393951793,1763126969829,-10000.01,0.00015,3]
[393951794,1763126970261,-10000.01,0.00015,3]
[393951795,1763126970276,-10000.01,0.00015,3]
[393951796,1763126973138,-5339.707968,0.00015,3]
[393951797,1763126974458,-157.97344633,0.00015,3]
[393951798,1763126975969,-281.75432382,0.00015,3]
[393951799,1763126977312,-10000.01,0.00015,3]
[393951800,1763126977452,-10000.01,0.00015,3]
[393951801,1763126978239,-228.97651632,0.00015,3]
[393951802,1763126980229,-10000.01,0.00015,3]
[393951803,1763126980361,-10000.01,0.00015,3]
[393951804,1763126980509,-10000.01,0.00015,3]
[393951805,1763126980879,-10000.01,0.00015,3]
[393951806,1763126981010,-10000.01,0.00015,3]
[393951807,1763126981120,-10000.01,0.00015,3]
[393951808,1763126981240,-10000.01,0.00015,3]
[393951809,1763126981383,-10000.01,0.00015,3]
[393951810,1763126981638,-210.33303172,0.00015,3]
[393951811,1763126984835,-366.42155809,0.00015,3]
[393951812,1763126989393,-151.12427085,0.00015,3]
[393951813,1763126992866,-500.0,0.00015,3]
[393951814,1763126997502,-237.24484988,0.00015,3]
[393951815,1763126999426,-192.51023054,0.00015,3]
[393951816,1763127001643,-296.86610541,0.00015,3]
[393951817,1763127008150,-366.94052769,0.00014999,2]
[393951818,1763127009664,-833.05947231,0.00014999,2]
[393951819,1763127009693,-150.0,0.00014999,2]
[393951820,1763127009750,-8033.89105538,0.00015,3]
[393951821,1763127009776,-10000.01,0.00015,3]
[393951822,1763127009882,-10000.01,0.00015,3]
[393951823,1763127010235,-10000.01,0.00015,3]
[393951824,1763127010330,-10000.01,0.00015,3]
[393951825,1763127010483,-10000.01,0.00015,3]
[393951826,1763127010597,-10000.01,0.00015,3]
[393951827,1763127010732,-4043.70132654,0.00015,3]
[393951828,1763127010756,-1912.60734692,0.00015,3]
[393951829,1763127010788,-229.8903802,0.00015,2]
[393951830,1763127010816,-70.1096198,0.00015,2]
[393951831,1763127010856,-237.23657427,0.00015,2]
[393951832,1763127010885,-4391.5436032,0.00015,2]
[393951833,1763127013170,-231.10645961,0.000154,2]
[393951854,1763127031683,-272.39204874,0.000154,2]
[393951855,1763127031694,-2218.34022439,0.00015807,2]
[393951856,1763127031703,-200.0,0.0001583,2]
[393951857,1763127031713,-714.26772687,0.00015908,2]
[393951858,1763127031797,-265.61810053,0.00015908,2]
[393951859,1763127031808,-218.6420816,0.0001611,2]
[393951860,1763127031818,-255.0,0.00016124,2]
[393951861,1763127031827,-896.61956164,0.00016438,2]
[393951869,1763127037887,-2043.94043836,0.00016438,2]
[393951870,1763127037897,-29643.1966,0.00016483,2]
[393951873,1763127037910,-3579.76782839,0.00016484,2]
[393951875,1763127037919,-395.82,0.00016499,2]
[393951877,1763127037930,-195.0,0.000165,2]
[393951879,1763127037941,-300.0,0.000165,2]
[393951881,1763127037960,-300.0,0.000165,2]
[393951883,1763127037970,-300.0,0.000165,2]
[393951885,1763127037980,-250.0,0.000165,2]
[393951887,1763127037989,-2171.79,0.00016539,2]
[393951889,1763127037999,-6126.2,0.00016553,2]
[393951891,1763127038008,-240.3,0.00016563,2]
[393951893,1763127038018,-957.0,0.00016571,2]
[393951895,1763127038027,-500.0,0.00016573,2]
[393951897,1763127038036,-724.72,0.00016573,2]
[393951899,1763127038046,-724.72,0.00016573,2]
[393951901,1763127038058,-724.72,0.00016573,2]
[393951903,1763127038067,-724.72,0.00016573,2]
[393951904,1763127038076,-724.72,0.00016573,2]
[393951906,1763127038086,-151.0,0.00016573,2]
[393951908,1763127038095,-151.0,0.00016573,2]
[393951910,1763127038104,-151.0,0.00016573,2]
[393951912,1763127038118,-151.0,0.00016573,2]
[393951914,1763127038127,-172.35865597,0.00016573,2]
[393951916,1763127038136,-275.26,0.00016582,2]
[393951919,1763127038146,-608.52431875,0.00016582,2]
[393951921,1763127038155,-323.5499262,0.00016582,2]
[393951923,1763127038164,-152.60759887,0.00016582,2]
[393951925,1763127038173,-190.40046305,0.00016582,2]
[393951926,1763127038183,-500.0,0.00016582,2]
[393951927,1763127038192,-500.0,0.00016582,2]
[393951928,1763127038202,-500.0,0.00016582,2]
[393951929,1763127038211,-500.0,0.00016582,2]
[393951930,1763127038220,-500.0,0.00016582,2]
[393951931,1763127038229,-500.0,0.00016582,2]
[393951932,1763127038239,-283.27201733,0.00016582,2]
[393951933,1763127038248,-500.0,0.00016582,2]
[393951934,1763127038259,-500.0,0.00016582,2]
[393951935,1763127038268,-500.0,0.00016582,2]
[393951936,1763127038278,-500.0,0.00016582,2]
[393951937,1763127038288,-500.0,0.00016582,2]
[393951938,1763127038298,-500.0,0.00016582,2]
[393951939,1763127038310,-500.0,0.00016582,2]
[393951940,1763127038323,-500.0,0.00016582,2]
[393951941,1763127038334,-500.0,0.00016582,2]
[393951942,1763127038343,-632.67959257,0.00016582,2]
[393951943,1763127038354,-500.0,0.00016582,2]
[393951944,1763127038364,-500.0,0.00016582,2]
[393951945,1763127038374,-196.89938855,0.00016582,2]
[393951946,1763127038384,-500.0,0.00016582,2]
[393951947,1763127038394,-633.9069698,0.00016582,2]
[393951948,1763127038404,-500.0,0.00016582,2]
[393951949,1763127038414,-500.0,0.00016582,2]
[393951950,1763127038424,-500.0,0.00016582,2]
[393951951,1763127038435,-222.17117875,0.00016582,2]
[393951952,1763127038445,-321.10023504,0.00016582,2]
[393951953,1763127038456,-500.0,0.00016582,2]
[393951954,1763127038467,-500.0,0.00016582,2]
[393951955,1763127038478,-500.0,0.00016582,2]
[393951956,1763127038488,-500.0,0.00016582,2]
[393951957,1763127038497,-500.0,0.00016582,2]
[393951958,1763127038512,-500.0,0.00016582,2]
[393951959,1763127038521,-500.0,0.00016582,2]
[393951960,1763127038531,-585.4206818,0.00016582,2]
[393951961,1763127038542,-500.0,0.00016582,2]
[393951962,1763127038552,-500.0,0.00016582,2]
[393951963,1763127038568,-500.0,0.00016582,2]
[393951964,1763127038578,-500.0,0.00016582,2]
[393951965,1763127038589,-500.0,0.00016582,2]
[393951966,1763127038600,-500.0,0.00016582,2]
[393951967,1763127038609,-500.0,0.00016582,2]
[393951968,1763127038619,-500.0,0.00016582,2]
[393951969,1763127038629,-500.0,0.00016582,2]
[393951970,1763127038638,-484.33062287,0.00016582,2]
[393951971,1763127038648,-500.0,0.00016582,2]
[393951972,1763127038658,-500.0,0.00016582,2]
[393951973,1763127038667,-500.0,0.00016582,2]
[393951974,1763127038676,-500.0,0.00016582,2]
[393951975,1763127038686,-500.0,0.00016582,2]
[393951976,1763127038696,-250.0,0.00016582,2]
[393951977,1763127038706,-500.0,0.00016582,2]
[393951978,1763127038715,-539.02272359,0.00016582,2]
[393951979,1763127038725,-500.0,0.00016582,2]
[393951980,1763127038735,-500.0,0.00016582,2]
[393951981,1763127038745,-500.0,0.00016582,2]
[393951982,1763127038754,-500.0,0.00016582,2]
[393951983,1763127038764,-500.0,0.00016582,2]
[393951984,1763127038774,-500.0,0.00016582,2]
[393951985,1763127038783,-424.36196456,0.00016582,2]
[393951986,1763127038793,-500.0,0.00016582,2]
[393951987,1763127038803,-500.0,0.00016582,2]
[393951988,1763127038817,-500.0,0.00016582,2]
[393951989,1763127038827,-500.0,0.00016582,2]
[393951990,1763127038836,-350.74375237,0.00016582,2]
[393951991,1763127038846,-500.0,0.00016583,2]
[393951992,1763127038855,-500.0,0.00016583,2]
[393951993,1763127038865,-500.0,0.00016583,2]
[393951994,1763127038876,-500.0,0.00016583,2]
[393951995,1763127038894,-500.0,0.00016583,2]
[393951996,1763127038903,-401.72092243,0.00016583,2]
[393951997,1763127038923,-500.0,0.00016583,2]
[393951998,1763127038935,-51902.03613438,0.00016583,2]
[393951999,1763127039136,-354.0347142,0.00016583,2]
[393952001,1763127039721,-770.399917,0.00016356,2]
[393952002,1763127039731,-1895.53312401,0.00016583,2]
[393952003,1763127039895,-3561.99998,0.00016583,2]
[393952004,1763127039959,-4748.85,0.00016583,2]
[393952010,1763127040381,-1.7e-07,0.00016583,2]
[393952021,1763127043926,-500.0,0.00016439,2]
[393952022,1763127043936,-176.81248374,0.00016582,2]
[393952023,1763127043945,-456.67751626,0.00016583,2]
[393952024,1763127043957,-4663.6552728,0.00016583,2]
[393952025,1763127043986,-442338.72244638,0.00016583,2]
[393952026,1763127043996,-1000.0,0.00016584,2]
[393952027,1763127044005,-12282.1259,0.00016584,2]
[393952028,1763127044015,-250.0,0.00016637,2]
[393952029,1763127044024,-3579.76782833,0.00016641,2]
[393952030,1763127044034,-999.0,0.00016713,3]
[393952031,1763127044043,-158.90179447,0.00016767,2]
[393952032,1763127044052,-223.66,0.00016793,2]
[393952033,1763127044060,-3579.76782833,0.00016799,2]
[393952034,1763127044071,-275.26,0.00016856,2]
[393952035,1763127044080,-420.0,0.0001686,2]
[393952036,1763127044089,-55611.03216029,0.00016873,2]
[393952037,1763127044098,-500.0,0.00016973,2]
[393952038,1763127044106,-3110.39999994,0.0001699,2]
[393952039,1763127044116,-685843.7951709,0.00017,2]
[393952040,1763127044125,-1439.72,0.00017025,2]
[393952041,1763127044134,-158.90179447,0.0001705,2]
[393952042,1763127044143,-151.0,0.00017087,2]
[393952043,1763127044154,-150.0,0.000171,2]
[393952044,1763127044162,-500.0,0.00017121,2]
[393952045,1763127044172,-275.26713113,0.0001713,2]
[393952046,1763127044181,-168.0,0.00017264,2]
[393952047,1763127044190,-360.46200414,0.00017281,2]
[393952048,1763127044199,-168.0,0.00017309,2]
[393952049,1763127044208,-158.90179447,0.00017334,2]
[393952050,1763127044217,-301.681636,0.00017402,2]
[393952051,1763127044227,-420.0,0.00017423,2]
[393952052,1763127044235,-506.72807808,0.00017521,2]
[393952053,1763127044244,-171.52,0.00017553,2]
[393952054,1763127044254,-2145.0,0.000176,2]
[393952055,1763127044263,-6669.0,0.000176,2]
[393952056,1763127044272,-560.0,0.000176,2]
[393952057,1763127044281,-158.90179447,0.00017617,2]
[393952058,1763127044290,-608.0,0.0001764,2]
[393952059,1763127044299,-223.66,0.00017677,2]
[393952060,1763127044308,-953.156864,0.00017715,2]
[393952061,1763127044319,-821.0,0.00017791,2]
[393952062,1763127044328,-1598.0,0.00017791,2]
[393952063,1763127044338,-1275.0,0.00017791,2]
[393952064,1763127044347,-814.0,0.00017791,2]
[393952065,1763127044356,-907.0,0.00017791,2]
[393952066,1763127044365,-1190.0,0.00017791,2]
[393952067,1763127044375,-2167.85886011,0.000179,3]
[393952068,1763127044384,-158.90179447,0.000179,2]
[393952069,1763127044393,-1597.4048,0.000179,2]
[393952070,1763127044402,-154.56641318,0.000179,2]
[393952071,1763127044411,-305.51633304,0.000179,2]
[393952072,1763127044420,-405.0633398,0.000179,2]
[393952073,1763127044429,-1635.0,0.000179,2]
[393952074,1763127044439,-500.0,0.00017973,2]
[393952075,1763127044448,-501.62506393,0.00017973,2]
[393952076,1763127044457,-500.0,0.00017973,2]
[393952077,1763127044470,-588.8836558,0.00017976,2]
[393952078,1763127044480,-378.98053424,0.00017998,5]
[393952079,1763127044490,-42860.2977341,0.00017999,2]
[393952081,1763127044500,-500.0,0.00017999,2]
[393952083,1763127044510,-500.0,0.00017999,2]
[393952085,1763127044519,-500.0,0.00017999,2]
[393952087,1763127044529,-525.92146982,0.00017999,2]
[393952089,1763127044538,-150.0,0.00018,2]
[393952091,1763127044548,-1933243.33919945,0.00018,2]
[393952093,1763127044560,-47448.97200001,0.00018,2]
[393952112,1763127045804,-403.29062472,0.00016583,2]
[393952116,1763127046216,-96.70937528,0.00016583,2]
[393952117,1763127046226,-443.73507614,0.00016583,2]
[393952118,1763127046235,-9147.68945265,0.00018,2]
[393952119,1763127046247,-1037.90001,0.00018,2]
[393952120,1763127046258,-3199.2768,0.00018,2]
[393952121,1763127054235,2321.94745813,0.00015,2]
[393952122,1763127054264,366.8802,0.00015,2]
[393952123,1763127054300,742.44964506,0.00015,2]
[393952124,1763127054324,10000.01,0.00015,2]
[393952125,1763127054347,10000.01,0.00015,2]
[393952126,1763127054370,10000.01,0.00015,2]
[393952127,1763127054395,10000.01,0.00015,2]
[393952128,1763127054419,10000.01,0.00015,2]
[393952129,1763127054442,10000.01,0.00015,2]
[393952130,1763127054465,10000.01,0.00015,2]
[393952131,1763127054491,10000.01,0.00015,2]
[393952132,1763127054514,10000.01,0.00015,2]
[393952133,1763127061904,-359.04381301,0.00015,2]
[393952134,1763127063789,-300.0,0.00014999,2]
[393952135,1763127064856,-8657.56035494,0.00015,2]
[393952136,1763127064964,-3384.32492936,0.00015,2]
[393952138,1763127265106,-10000.01,0.00015932,2]
[393952139,1763127265225,-10000.01,0.00015932,2]
[393952140,1763127265374,-3614.3572447,0.00015932,2]
[393952141,1763127266882,-305.20999545,0.0001614,2]
[393952142,1763127270512,-338.1722733,0.0001614,2]
[393952143,1763127273060,-190.4422575,0.0001614,2]
[393952144,1763127280988,-268.89354039,0.0001614,2]
[393952145,1763127283008,2309.94977892,0.00016054,2]
[393952146,1763127286473,-159.79474072,0.0001614,2]
[393952147,1763127288694,-166.66,0.0001614,2]
[393952148,1763127295145,-151.0,0.0001614,2]
[393952149,1763127298003,-220.44000221,0.0001614,2]
[393952150,1763127302656,-424.22290232,0.0001614,2]
[393952151,1763127302911,950.4,0.00041213,30]
[393952152,1763127304295,-269.87787515,0.0001614,2]
[393952153,1763127311494,-170.73509499,0.0001614,2]
[393952155,1763127318502,-1727.80590343,0.0001614,2]
[393952156,1763127320145,-528.27782601,0.0001614,2]
[393952157,1763127325172,-347.54736493,0.0001614,2]
[393952158,1763127325192,-17.41425636,0.00016154,2]
[393952159,1763127327743,-146.26074364,0.00016154,2]
[393952160,1763127327955,-142.64989747,0.00016154,2]
[393952161,1763127336151,-308.25801285,0.00016154,2]
[393952169,1763127458664,-499.84,0.00024658,30]
[393952172,1763127482443,-500.16,0.00024,24]
[393952173,1763127494742,179.16738511,0.00041213,30]
[393952179,1763127540097,461.34573168,7.955e-05,2]
[393952180,1763127540121,2272.79426832,7.955e-05,2]
[393952181,1763127540914,2734.14,8.373e-05,2]
[393952182,1763127541154,2734.14,8.792e-05,2]
[393952183,1763127541368,2258.93573168,9.211e-05,2]
[393952184,1763127541390,475.20426832,9.211e-05,2]
[393952185,1763127541794,2734.14,9.629e-05,2]
[393952188,1763127542229,2734.14,0.00010048,2]
[393952189,1763127542275,2734.14,0.00010467,2]
[393952190,1763127542587,1322.38573168,0.00010885,2]
[393952191,1763127542618,1411.75426832,0.00010885,2]
[393952192,1763127542694,588.24573168,0.00011304,2]
[393952193,1763127542721,2000.0,0.00011304,2]
[393952194,1763127542743,145.89426832,0.00011304,2]
[393952195,1763127542906,2734.14,0.00011723,2]
[393952196,1763127543302,2119.96573168,0.00012141,2]
[393952197,1763127543323,614.17426832,0.00012141,2]
[393952198,1763127543585,2734.14,0.0001256,2]
[393952199,1763127543807,1651.68573168,0.00012979,2]
[393952200,1763127543831,1082.45426832,0.00012979,2]
[393952201,1763127543947,2734.14,0.00013397,2]
[393952202,1763127546168,-2734.14,0.00013816,2]
[393952203,1763127546207,-1797.59,0.00014235,2]
[393952204,1763127546292,-936.55,0.00014235,2]
[393952205,1763127546321,-2734.14,0.00014653,2]
[393952206,1763127546422,-222.55261294,0.00015072,2]
[393952207,1763127549380,-2511.58738706,0.00015072,2]
[393952208,1763127549408,-2242.69522588,0.00015491,2]
[393952209,1763127549623,-491.44477412,0.00015491,2]
[393952210,1763127549655,-2734.14,0.00015909,2]
[393952215,1763127578341,200.0,0.000159,5]
[393952216,1763127581418,-94.76208968,0.00016154,2]
[393952217,1763127593757,-499.84,0.00029704,30]
[393952218,1763127593808,-158.0,0.00033,30]
[393952219,1763127593850,-153.639802,0.0003413,31]
[393952220,1763127593895,-164.473876,0.0003413,31]
[393952221,1763127593937,-153.727326,0.0003413,31]
[393952222,1763127593978,-151.0,0.0003413,30]
[393952223,1763127594017,-171.157562,0.0003413,31]
[393952224,1763127594054,-151.0,0.0003413,31]
[393952225,1763127594092,-151.0,0.0003413,30]
[393952226,1763127594129,-151.0,0.0003413,31]
[393952227,1763127594166,-151.0,0.0003413,31]
[393952228,1763127594205,-151.0,0.0003413,31]
[393952229,1763127594242,-151.0,0.0003413,31]
[393952230,1763127594277,-151.0,0.0003413,31]
[393952231,1763127594312,-280.275905,0.0003413,31]
[393952232,1763127594348,-151.0,0.0003413,31]
[393952233,1763127594383,-151.0,0.0003413,31]
[393952234,1763127594417,-214.701922,0.0003413,31]
[393952235,1763127594450,-151.0,0.0003413,31]
[393952236,1763127594488,-151.0,0.0003413,31]
[393952237,1763127594523,-151.0,0.0003413,31]
[393952238,1763127594559,-151.0,0.00034212,31]
[393952239,1763127594595,-153.658433,0.00034212,31]
[393952240,1763127594629,-214.783954,0.00034212,31]
[393952241,1763127594669,-151.792159,0.00034212,31]
[393952242,1763127594705,-151.0,0.00034212,31]
[393952243,1763127594745,-499.84,0.00034751,30]
[393952244,1763127594781,-151.0,0.00035,31]
[393952245,1763127594825,-151.0,0.00035,31]
[393952246,1763127594863,-151.0,0.00035,31]
[393952247,1763127594902,-151.0,0.00035,31]
[393952248,1763127594938,-151.0,0.00035,31]
[393952249,1763127594990,-344.18,0.000394,30]
[393952250,1763127595028,-545.67,0.00039615,55]
[393952251,1763127595064,-499.84,0.00039798,30]
[393952252,1763127595112,-257611.77918435,0.0004075,45]
[393952253,1763127595149,-344.18,0.000409,30]
[393952254,1763127595206,-151.0,0.00041193,120]
[393952255,1763127595247,-151.0,0.00041193,120]
[393952256,1763127595284,-151.0,0.00041193,120]
[393952257,1763127595321,-151.0,0.00041193,120]
[393952258,1763127595355,-151.0,0.00041193,120]
[393952259,1763127595389,-151.0,0.00041193,120]
[393952260,1763127595428,-151.0,0.00041193,120]
[393952261,1763127595461,-151.0,0.00041193,120]
[393952262,1763127595496,-208.716541,0.00041193,120]
[393952263,1763127595531,-860.0,0.00041213,30]
[393952264,1763127595566,-153.39399,0.00041213,120]
[393952265,1763127595601,-153.212537,0.00041213,120]
[393952266,1763127595638,-152.822137,0.00041213,120]
[393952267,1763127595679,-243.162783,0.00041213,60]
[393952268,1763127595716,-151.0,0.00041213,120]
[393952269,1763127595757,-153.159452,0.00041213,120]
[393952270,1763127595794,-152.400189,0.00041213,120]
[393952271,1763127595833,-151.0,0.00041213,120]
[393952272,1763127595871,-152.446215,0.00041213,120]
[393952273,1763127595908,-152.828744,0.00041213,120]
[393952274,1763127595945,-151.0,0.00041213,120]
[393952275,1763127595985,-151.0,0.00041213,120]
[393952276,1763127596023,-154.964526,0.00041213,120]
[393952277,1763127596060,-151.0,0.00041213,120]
[393952278,1763127596099,-301.999999,0.00041213,120]
[393952279,1763127596135,-151.0,0.00041213,120]
[393952280,1763127596173,-151.0,0.00041213,30]
[393952281,1763127596407,-151.0,0.00041213,30]
[393952282,1763127596443,-256.779471,0.00041213,30]
[393952283,1763127596478,-151.0,0.00041213,120]
[393952285,1763127596513,-151.0,0.00041213,30]
[393952286,1763127596548,-156.91341,0.00041213,120]
[393952287,1763127596584,-156.44187,0.00041213,120]
[393952288,1763127596617,-151.0,0.00041213,120]
[393952289,1763127596649,-199.683508,0.00041213,120]
[393952290,1763127596683,-163.201111,0.00041213,120]
[393952291,1763127596715,-152.672488,0.00041213,120]
[393952292,1763127596748,-151.0,0.00041213,120]
[393952293,1763127596782,-158.466227,0.00041213,120]
[393952294,1763127596817,-151.0,0.00041213,120]
[393952295,1763127596869,-151.0,0.00041213,120]
[393952296,1763127596906,-151.0,0.00041213,120]
[393952297,1763127596949,-500.0,0.00043836,31]
[393952298,1763127596990,-499.84,0.00044845,120]
[393952299,1763127597033,-709.18,0.00046144,30]
[393952300,1763127597075,-698.9,0.00046144,30]
[393952301,1763127597111,-702.0,0.00046144,30]
[393952302,1763127597149,-693.46,0.00046144,30]
[393952303,1763127597188,-505.33,0.00046144,30]
[393952304,1763127597228,-1138.39109321,0.0004788,100]
[393952305,1763127597265,-344.18,0.00048,30]
[393952306,1763127597301,-1000000.0,0.00048,120]